bitfinex-derivatives/quotes_SOLF0:USTF0_20250113
["timestamp","ask_amount","ask_price","bid_price","bid_amount"]
[1736751350617,14.39,181.93,181.83,7.6593]
[1736751352317,2.7501,181.91,181.84,2.7511]
[1736751352807,2.7503,181.9,181.83,4.9082]
[1736751353520,2.7504,181.89,181.83,3.3217]
[1736751353817,33.97075613,181.92,181.83,3.3217]
[1736751354213,2.7502,181.91,181.84,2.7511]
[1736751354516,20.77,181.93,181.83,3.3217]
[1736751354717,20.77,181.93,181.86,2.7508]
[1736751355318,20.77,181.93,181.88,2.7505]
[1736751355618,20.77,181.93,181.84,1.6348]
[1736751357122,23.5199,181.93,181.86,2.7508]
[1736751357620,2.75,181.92,181.84,4.3858]
[1736751357814,20.77,181.93,181.84,4.3858]
[1736751358022,20.77,181.93,181.84,1.6348]
[1736751358321,2.75,181.92,181.85,2.751]
[1736751358821,2.75,181.92,181.84,1.6348]
[1736751359021,2.75,181.92,181.86,2.7508]
[1736751359520,14.39,181.93,181.85,33.97075613]
[1736751359720,14.39,181.93,181.88,33.97075613]
[1736751360115,14.39,181.93,181.92,2.7499]
[1736751360513,6.36,182.04,181.91,33.97075613]
[1736751360718,194.0,182.13,181.91,33.97075613]
[1736751360919,33.97075613,182.08,181.94,33.97075613]
[1736751361119,6.38,182.09,181.94,33.97075613]
[1736751361519,33.97075613,182.08,181.94,33.97075613]
[1736751361720,29.19082,182.05,181.91,33.97075613]
[1736751361919,2.7484,182.02,181.91,33.97075613]
[1736751362522,63.16157613,182.05,181.88,33.97075613]
[1736751362720,33.97075613,181.99,181.85,33.97075613]
[1736751362923,40.33075613,181.99,181.87,2.7507]
[1736751363123,2.7495,181.96,181.82,40.33075613]
[1736751363323,40.33075613,181.99,181.82,40.33075613]
[1736751363515,33.97075613,181.96,181.82,40.33075613]
[1736751363723,1.6347,181.95,181.82,6.36]
[1736751363919,1.6347,181.95,181.83,2.7512]
[1736751364227,1.6347,181.95,181.79,33.97075613]
[1736751364430,33.97075613,181.93,181.76,33.97075613]
[1736751364628,33.97075613,181.9,181.76,33.97075613]
[1736751364829,7.9203,181.89,181.76,33.97075613]
[1736751365027,7.9203,181.89,181.82,2.7514]
[1736751365216,1.5603,181.89,181.76,33.97075613]
[1736751365423,6.36,181.92,181.79,33.97075613]
[1736751365619,6.36,181.92,181.8,1.6261]
[1736751366020,6.36,181.92,181.84,2.751]
[1736751366220,6.36,181.92,181.8,1.6261]
[1736751366930,9.11,181.92,181.85,2.751]
[1736751367132,6.36,181.92,181.85,2.751]
[1736751367432,6.36,181.92,181.8,1.6261]
[1736751367828,6.36,181.92,181.81,20.91498955]
[1736751368227,1.5603,181.94,181.88,2.7505]
[1736751368430,1.5603,181.94,181.81,20.91498955]
[1736751368723,4.3099,181.94,181.86,2.7507]
[1736751369024,22.47528955,181.94,181.8,1.6261]
[1736751369626,1.5603,181.94,181.81,20.91498955]
[1736751370132,2.75,181.92,181.84,2.751]
[1736751370327,22.47528955,181.94,181.74,3.2921]
[1736751370532,20.91498955,181.91,181.75,1.6121]
[1736751370928,2.7504,181.89,181.79,2.7518]
[1736751371127,2.7504,181.89,181.75,1.6121]
[1736751371523,2.7504,181.89,181.79,2.7519]
[1736751371726,20.91498955,181.88,181.75,1.6121]
[1736751371933,6.4,181.87,181.75,1.6121]
[1736751372133,8.0176,181.87,181.78,2.7519]
[1736751372341,1.5426,181.86,181.75,1.6121]
[1736751373030,1.5426,181.86,181.73,20.91498955]
[1736751373236,1.5426,181.86,181.74,1.6871]
[1736751373535,6.4,181.87,181.74,1.6871]
[1736751373833,6.4,181.87,181.82,2.7514]
[1736751374232,6.4,181.87,181.76,20.91498955]
[1736751374426,9.1507,181.87,181.74,1.6871]
[1736751374830,6.4,181.87,181.78,20.91498955]
[1736751375436,3.1602,181.93,181.81,20.91498955]
[1736751375937,1.5426,181.93,181.88,2.7504]
[1736751376537,1.5426,181.93,181.89,2.7503]
[1736751376934,1.5426,181.93,181.82,4.9448]
[1736751377231,1.5426,181.93,181.78,20.91498955]
[1736751377842,20.91498955,181.91,181.74,4.9448]
[1736751378138,1.6804,181.9,181.76,20.91498955]
[1736751378742,4.4308,181.9,181.8,2.7517]
[1736751378929,4.4308,181.9,181.76,20.91498955]
[1736751378930,24.0008,181.9,181.76,20.91498955]
[1736751379336,21.2504,181.9,181.75,2.7525]
[1736751379634,2.751,181.85,181.72,20.91498955]
[1736751379841,2.751,181.85,181.78,2.7519]
[1736751380039,9.1507,181.87,181.72,20.91498955]
[1736751380538,6.4,181.87,181.78,2.752]
[1736751380740,6.4,181.87,181.72,20.91498955]
[1736751381238,27.6504,181.9,181.75,20.91498955]
[1736751381636,2.7504,181.89,181.82,2.7514]
[1736751381836,27.6504,181.9,181.78,20.91498955]
[1736751382031,27.6504,181.9,181.71,20.91498955]
[1736751382032,19.57,181.9,181.81,20.91498955]
[1736751382238,19.57,181.9,181.89,2.7504]
[1736751382535,6.4,181.97,181.82,3.218]
[1736751382536,215.8407044,182.04,181.87,20.91498955]
[1736751382734,7.6329,182.02,181.95,2.7494]
[1736751382935,105.42325387,182.05,181.93,20.91498955]
[1736751383130,105.42325387,182.05,181.9,20.91498955]
[1736751383131,105.42325387,182.05,181.96,20.91498955]
[1736751383530,105.42325387,182.05,181.99,20.91498955]
[1736751383730,14.74082,182.05,181.99,20.91498955]
[1736751383935,29.05082,182.05,182.03,2.7483]
[1736751384138,29.05082,182.05,181.99,20.91498955]
[1736751384442,29.05082,182.05,182.01,2.7485]
[1736751384939,29.05082,182.05,181.93,20.91498955]
[1736751385140,29.05082,182.05,181.96,2.7492]
[1736751385539,29.05082,182.05,181.9,49.95335843]
[1736751385741,29.05082,182.05,181.99,2.7488]
[1736751385940,29.05082,182.05,181.93,20.91498955]
[1736751385941,29.05082,182.05,181.96,20.91498955]
[1736751386934,29.05082,182.05,182.03,2.7482]
[1736751388336,29.05082,182.05,182.01,2.7485]
[1736751388741,29.05082,182.05,181.96,20.91498955]
[1736751389239,29.05082,182.05,181.93,20.91498955]
[1736751389441,29.05082,182.05,181.93,33.93239335]
[1736751390442,29.05082,182.05,181.98,2.749]
[1736751390639,29.05082,182.05,181.93,33.93239335]
[1736751390843,29.05082,182.05,181.92,1.6435]
[1736751391039,1.7027,182.04,181.92,1.6435]
[1736751391344,29.05082,182.05,181.93,33.93239335]
[1736751391645,29.05082,182.05,181.96,33.93239335]
[1736751391842,29.05082,182.05,181.93,35.52629335]
[1736751392446,29.05082,182.05,181.98,2.749]
[1736751392839,29.05082,182.05,181.96,33.93239335]
[1736751393041,29.05082,182.05,181.93,1.5939]
[1736751393042,29.05082,182.05,181.99,33.93239335]
[1736751394043,33.93239335,182.2,182.02,33.93239335]
[1736751394349,4.7054,182.21,182.07,33.93239335]
[1736751394740,2.7457,182.2,182.07,33.93239335]
[1736751395234,13.82,182.2,182.07,33.93239335]
[1736751395842,13.82,182.2,182.11,2.747]
[1736751397047,13.82,182.2,182.07,33.93239335]
[1736751397249,33.93239335,182.17,182.01,33.93239335]
[1736751397643,2.7472,182.1,182.02,2.7484]
[1736751397844,33.93239335,182.14,181.99,6.48]
[1736751398750,2.7471,182.11,182.04,2.7481]
[1736751399052,33.93239335,182.14,181.99,6.48]
[1736751399349,2.7474,182.09,182.01,2.7485]
[1736751399545,2.7474,182.09,181.99,6.48]
[1736751399746,1.5737,182.13,181.98,33.93239335]
[1736751399942,2.747,182.12,182.04,2.7481]
[1736751400148,1.5737,182.13,182.04,2.7481]
[1736751400648,1.5737,182.13,181.98,33.93239335]
[1736751400850,1.5737,182.13,182.01,33.93239335]
[1736751401649,33.93239335,182.11,181.95,33.93239335]
[1736751401839,3.1064,182.1,181.95,33.93239335]
[1736751402046,3.1064,182.1,182.04,2.7481]
[1736751402245,3.1064,182.1,182.01,33.93239335]
[1736751402445,3.1064,182.1,181.98,33.93239335]
[1736751402750,2.7475,182.08,181.98,33.93239335]
[1736751402948,3.1064,182.1,181.98,33.93239335]
[1736751403347,3.1064,182.1,181.95,33.93239335]
[1736751404046,3.1064,182.1,182.01,2.7485]
[1736751404246,3.1064,182.1,181.95,33.93239335]
[1736751404748,3.1064,182.1,181.98,33.93239335]
[1736751405345,3.1064,182.1,181.95,40.43239335]
[1736751405540,33.93239335,182.09,181.92,35.53099335]
[1736751406551,2.7478,182.06,181.92,35.53099335]
[1736751406750,33.93239335,182.09,181.92,35.53099335]
[1736751407048,3.1064,182.1,181.92,33.93239335]
[1736751407251,33.93239335,182.08,181.92,33.93239335]
[1736751407647,2.7483,182.04,181.96,2.7492]
[1736751407848,2.7483,182.04,181.92,33.93239335]
[1736751408043,33.93239335,182.05,181.92,33.93239335]
[1736751408248,33.93239335,182.05,181.97,2.7491]
[1736751408446,1.6647,182.04,181.91,1.5441]
[1736751408752,2.7483,182.03,181.94,2.7495]
[1736751408943,1.6647,182.04,181.91,1.5441]
[1736751409148,1.6647,182.04,181.92,33.93239335]
[1736751409542,1.6647,182.04,181.92,35.57939335]
[1736751409744,1.6647,182.04,181.92,33.93239335]
[1736751409954,1.6647,182.04,181.91,1.5441]
[1736751410156,1.6647,182.04,181.92,33.93239335]
[1736751410361,9.2275,182.08,182.0,2.7487]
[1736751410558,6.48,182.08,182.0,2.7487]
[1736751410864,40.41239335,182.08,181.92,33.93239335]
[1736751411058,2.7477,182.07,182.0,2.7486]
[1736751411256,40.41239335,182.08,181.92,33.93239335]
[1736751411455,6.48,182.08,181.94,20.8799638]
[1736751411656,2.7478,182.06,181.98,2.7489]
[1736751412056,6.48,182.08,181.98,2.7489]
[1736751412358,1.6647,182.09,181.94,20.8799638]
[1736751412556,1.6647,182.09,181.97,20.8799638]
[1736751412762,1.6647,182.09,181.91,1.5441]
[1736751412763,1.6647,182.09,181.94,20.8799638]
[1736751413263,2.748,182.05,181.98,2.7489]
[1736751413463,1.6647,182.09,181.94,20.8799638]
[1736751413657,1.6647,182.09,181.97,20.8799638]
[1736751414353,1.6647,182.09,182.0,20.8799638]
[1736751415460,14.5,182.09,182.0,20.8799638]
[1736751415968,14.5,182.09,182.05,2.7478]
[1736751416462,14.5,182.09,182.05,2.7479]
[1736751416865,14.5,182.09,182.0,20.8799638]
[1736751417264,2.7475,182.08,182.03,2.7481]
[1736751417458,14.5,182.09,181.97,20.8799638]
[1736751417856,2.748,182.05,181.99,2.7489]
[1736751418564,14.5,182.09,181.94,20.8799638]
[1736751418959,2.7484,182.02,181.96,2.7493]
[1736751419160,6.4,182.05,181.91,1.5441]
[1736751419469,1.5929,182.04,181.91,1.5441]
[1736751419658,1.5929,182.04,181.92,20.8799638]
[1736751420062,2.7485,182.02,181.96,2.7492]
[1736751420262,2.7485,182.02,181.92,20.8799638]
[1736751420461,1.5929,182.04,181.92,20.8799638]
[1736751420665,22.4728638,182.04,181.9,1.5491]
[1736751420964,20.8799638,182.01,181.86,28.42424112]
[1736751421171,2.7497,181.94,181.87,2.7506]
[1736751421372,6.4,181.97,181.83,20.8799638]
[1736751421569,2.7499,181.92,181.85,2.7508]
[1736751421871,1.5747,181.96,181.83,20.8799638]
[1736751422272,1.5747,181.96,181.86,20.8799638]
[1736751423168,3.1335,182.0,181.89,20.8799638]
[1736751423369,2.7489,181.99,181.92,2.7498]
[1736751423573,3.1335,182.0,181.89,20.8799638]
[1736751423769,2.7489,181.99,181.93,2.7497]
[1736751423968,3.1335,182.0,181.86,20.8799638]
[1736751424168,1.5855,181.99,181.86,20.8799638]
[1736751424772,2.7493,181.96,181.86,20.8799638]
[1736751425166,1.5855,181.99,181.86,20.8799638]
[1736751425370,2.7492,181.97,181.86,20.8799638]
[1736751426374,1.5855,181.99,181.86,20.8799638]
[1736751426964,20.8799638,181.98,181.83,20.8799638]
[1736751427165,20.8799638,181.95,181.81,1.6297]
[1736751427368,6.38,181.94,181.78,7.54427732]
[1736751427564,2.7505,181.89,181.78,7.54427732]
[1736751428171,2.7505,181.89,181.82,2.7514]
[1736751428777,2.7505,181.88,181.8,2.7516]
[1736751429275,20.8799638,181.92,181.77,24.1207638]
[1736751429477,2.7509,181.86,181.77,20.8799638]
[1736751429776,20.8799638,181.89,181.76,1.5754]
[1736751429971,20.8799638,181.89,181.78,2.752]
[1736751430167,20.8799638,181.89,181.76,1.5754]
[1736751431272,4.803,181.91,181.77,20.8799638]
[1736751431872,2.7504,181.89,181.77,20.8799638]
[1736751432073,4.803,181.91,181.77,20.8799638]
[1736751432473,3.1619,181.91,181.8,20.8799638]
[1736751432867,3.1619,181.91,181.81,1.6946]
[1736751433067,3.1619,181.91,181.85,2.7509]
[1736751434082,3.1619,181.91,181.82,2.7513]
[1736751434282,3.1619,181.91,181.81,1.6946]
[1736751434874,20.8799638,181.89,181.76,1.5754]
[1736751435280,20.8799638,181.89,181.79,2.7519]
[1736751435480,20.8799638,181.89,181.76,1.5754]
[1736751435683,1.6723,181.88,181.76,1.5754]
[1736751436083,2.7508,181.86,181.79,2.7519]
[1736751436286,1.6723,181.88,181.76,1.5754]
[1736751437390,1.5595,181.91,181.8,20.8799638]
[1736751437580,14.56,181.92,181.81,1.6356]
[1736751437782,14.56,181.92,181.83,20.8799638]
[1736751439493,14.56,181.92,181.86,20.8799638]
[1736751439788,6.34,182.03,181.89,20.8799638]
[1736751439990,6.34,182.03,181.92,20.8799638]
[1736751440685,6.34,182.03,181.97,2.7491]
[1736751441993,9.0883,182.03,181.95,2.7494]
[1736751442187,3.2344,182.05,181.92,20.8799638]
[1736751442984,3.2344,182.05,181.97,2.749]
[1736751443794,3.2344,182.05,181.98,2.749]
[1736751444099,1.6124,182.05,181.98,2.749]
[1736751444395,5.4917,182.2,181.98,2.749]
[1736751444396,1.6433,182.08,181.98,20.8799638]
[1736751444890,2.7474,182.1,181.98,20.8799638]
[1736751445092,1.6098,182.12,181.98,20.8799638]
[1736751445694,20.8799638,182.1,181.95,20.8799638]
[1736751445988,2.7475,182.09,182.0,2.7486]
[1736751446191,1.6098,182.12,181.98,20.8799638]
[1736751446593,1.5829,182.13,182.07,2.7475]
[1736751446784,1.5829,182.13,182.01,20.8799638]
[1736751447188,1.5829,182.13,182.07,2.7476]
[1736751447387,1.5829,182.13,182.01,20.8799638]
[1736751447587,20.8799638,182.16,182.01,20.8799638]
[1736751447986,2.7465,182.15,182.01,20.8799638]
[1736751448185,7.9454,182.2,182.04,20.8799638]
[1736751448392,4.3912,182.2,182.07,20.8799638]
[1736751448591,1.6454,182.2,182.07,20.8799638]
[1736751449194,1.6454,182.2,182.1,20.8799638]
[1736751449796,4.3911,182.2,182.12,2.7469]
[1736751450798,1.6454,182.2,182.07,20.8799638]
[1736751451194,2.746,182.19,182.11,2.7471]
[1736751451395,1.6454,182.2,182.04,20.8799638]
[1736751451797,20.8799638,182.19,182.01,20.8799638]
[1736751452291,2.7466,182.14,182.06,2.7478]
[1736751453290,27.1799638,182.16,182.01,20.8799638]
[1736751454099,6.3,182.16,182.04,20.8799638]
[1736751454298,6.3,182.16,182.07,2.7476]
[1736751454498,6.3,182.16,182.04,20.8799638]
[1736751455998,2.7466,182.14,182.06,2.7478]
[1736751456301,6.3,182.16,182.04,20.8799638]
[1736751456597,27.1799638,182.16,181.94,50.46152868]
[1736751456803,20.8799638,182.13,181.98,20.8799638]
[1736751457102,1.634,182.12,181.98,20.8799638]
[1736751457299,2.7471,182.11,182.03,2.7483]
[1736751457902,1.634,182.12,181.98,20.8799638]
[1736751458103,1.634,182.12,182.01,20.8799638]
[1736751458708,1.634,182.12,182.04,2.7481]
[1736751458895,1.634,182.12,182.01,20.8799638]
[1736751459303,1.634,182.12,182.05,2.7478]
[1736751459605,6.28,182.17,182.04,20.8799638]
[1736751459801,6.28,182.17,182.11,2.747]
[1736751460005,1.7094,182.19,182.07,20.8799638]
[1736751460407,2.746,182.18,182.07,20.8799638]
[1736751461103,1.7094,182.19,182.04,20.8799638]
[1736751461808,22.5893638,182.19,182.04,20.8799638]
[1736751462003,22.5893638,182.19,182.02,6.28]
[1736751462208,2.7466,182.14,182.06,2.7478]
[1736751462808,2.7468,182.13,182.06,2.7478]
[1736751463110,27.1599638,182.13,181.98,20.8799638]
[1736751463306,2.7474,182.09,181.98,20.8799638]
[1736751463505,1.6344,182.12,181.98,20.8799638]
[1736751463809,1.5585,182.11,182.03,2.7483]
[1736751464109,1.5585,182.11,181.98,20.8799638]
[1736751464110,2.7475,182.08,181.98,20.8799638]
[1736751464311,1.5609,182.1,182.02,2.7484]
[1736751464504,2.7474,182.09,182.02,2.7484]
[1736751465104,3.1194,182.11,181.95,20.8799638]
[1736751465305,20.8799638,182.1,181.94,44.18152868]
[1736751465512,2.7484,182.02,181.94,2.7495]
[1736751465713,6.3,182.05,181.93,7.90700588]
[1736751466311,6.3,182.05,181.95,2.7495]
[1736751466712,2.7482,182.04,181.96,2.7493]
[1736751467819,6.3,182.05,181.97,2.749]
[1736751468117,6.3,182.08,181.95,20.8799638]
[1736751468723,2.7477,182.07,182.0,2.7487]
[1736751469919,9.0475,182.08,182.03,2.7483]
[1736751471719,6.3,182.08,181.95,20.8799638]
[1736751472717,6.3,182.08,182.02,2.7484]
[1736751474220,9.0476,182.08,182.02,2.7484]
[1736751474621,2.7478,182.06,181.95,20.8799638]
[1736751475219,2.7478,182.06,182.0,2.7487]
[1736751475920,6.3,182.08,181.87,20.8799638]
[1736751475921,20.8799638,182.04,181.87,20.8799638]
[1736751476124,6.3,182.08,181.87,20.8799638]
[1736751476125,20.8799638,182.01,181.87,20.8799638]
[1736751476422,2.7498,181.93,181.86,30.1771093]
[1736751476618,6.26,181.97,181.82,30.1771093]
[1736751477023,6.26,181.97,181.88,2.7504]
[1736751477221,6.26,181.97,181.82,51.0570731]
[1736751477618,6.26,181.97,181.82,20.8799638]
[1736751478120,20.8799638,181.95,181.79,20.8799638]
[1736751478323,1.543,181.94,181.79,20.8799638]
[1736751479028,20.8799638,181.92,181.76,115.1999638]
[1736751479224,3.2222,181.91,181.76,115.1999638]
[1736751479819,3.2222,181.91,181.83,2.7513]
[1736751480016,3.2222,181.91,181.79,20.8799638]
[1736751480424,3.2222,181.91,181.86,2.7508]
[1736751480728,1.679,181.91,181.82,20.8799638]
[1736751480916,1.543,181.94,181.82,20.8799638]
[1736751481120,6.26,181.95,181.82,20.8799638]
[1736751481323,1.5432,181.96,181.85,20.8799638]
[1736751481522,1.5432,181.96,181.82,6.26]
[1736751481523,6.26,182.01,181.88,20.8799638]
[1736751482324,6.26,182.01,181.91,20.8799638]
[1736751482520,3.3533,182.06,181.91,20.8799638]
[1736751482718,3.3533,182.06,181.94,20.8799638]
[1736751483227,3.3533,182.06,181.97,20.8799638]
[1736751483529,3.3533,182.06,182.0,2.7487]
[1736751484924,1.6727,182.06,182.0,2.7487]
[1736751486129,1.6727,182.06,182.01,2.7486]
[1736751488131,20.8799638,182.13,181.97,20.8799638]
[1736751488331,20.8799638,182.13,182.0,20.8799638]
[1736751488332,7.8266,182.13,182.0,20.8799638]
[1736751489232,1.6066,182.13,182.03,20.8799638]
[1736751489533,97.83080782,182.22,182.06,20.8799638]
[1736751489734,2.7462,182.17,182.08,2.7474]
[1736751490034,2.7462,182.17,182.06,20.8799638]
[1736751490232,2.746,182.19,182.1,2.7472]
[1736751490427,3.2517,182.2,182.09,20.8799638]
[1736751492129,3.2517,182.2,182.13,2.7467]
[1736751492629,3.2517,182.2,182.09,20.8799638]
[1736751492832,6.5713653,182.23,182.16,2.7463]
[1736751493338,6.5713653,182.23,182.07,20.8799638]
[1736751494032,2.7457,182.2,182.07,20.8799638]
[1736751494834,2.7462,182.17,182.07,20.8799638]
[1736751495024,6.2,182.18,182.0,20.8799638]
[1736751495229,2.7465,182.15,182.07,2.7476]
[1736751495728,2.7467,182.14,182.06,2.7478]
[1736751496229,2.7467,182.14,182.0,20.8799638]
[1736751496630,3.3156,182.16,182.0,20.8799638]
[1736751498239,2.7465,182.15,182.07,2.7477]
[1736751498442,3.3156,182.16,182.07,2.7477]
[1736751498635,24.1955638,182.16,182.0,20.8799638]
[1736751499038,2.7471,182.11,182.03,2.7482]
[1736751499644,2.7471,182.11,182.04,2.7481]
[1736751499940,3.3156,182.16,182.0,20.8799638]
[1736751500140,3.3156,182.16,182.04,20.8799638]
[1736751501144,3.3156,182.16,182.1,2.7471]
[1736751501329,2.7459,182.19,182.07,20.8799638]
[1736751501941,6.18,182.2,182.1,20.8799638]
[1736751503138,6.18,182.2,182.13,2.7468]
[1736751503339,6.18,182.2,182.1,20.8799638]
[1736751503843,6.18,182.2,182.14,2.7465]
[1736751504038,2.7459,182.19,182.07,20.8799638]
[1736751504234,2.7459,182.19,182.12,2.7468]
[1736751504438,3.3237,182.22,182.07,20.8799638]
[1736751504633,2.7458,182.2,182.07,20.8799638]
[1736751504836,3.3237,182.22,182.1,20.8799638]
[1736751505542,6.18,182.27,182.13,20.8799638]
[1736751505847,6.18,182.27,182.17,2.746]
[1736751505848,2.7451,182.25,182.17,2.746]
[1736751506547,9.4692,182.27,182.17,2.746]
[1736751506844,2.7451,182.24,182.17,2.746]
[1736751508848,20.8799638,182.25,182.1,20.8799638]
[1736751509048,20.8799638,182.22,182.07,27.0399638]
[1736751509248,20.8799638,182.22,182.07,20.8799638]
[1736751510144,20.8799638,182.22,182.04,6.16]
[1736751510145,20.8799638,182.19,182.09,2.7473]
[1736751510350,1.619,182.18,182.01,6.16]
[1736751510547,3.2487,182.18,182.03,20.8799638]
[1736751511450,2.7466,182.14,182.07,2.7475]
[1736751512446,2.7466,182.14,182.08,2.7475]
[1736751513349,2.7466,182.14,182.03,20.8799638]
[1736751513350,2.7464,182.16,182.1,2.7471]
[1736751514449,3.2487,182.18,182.03,20.8799638]
[1736751514649,3.2487,182.18,182.01,6.14]
[1736751514650,3.2487,182.18,182.06,20.8799638]
[1736751516048,3.2487,182.18,182.09,2.7473]
[1736751516254,3.2487,182.18,182.06,20.8799638]
[1736751516855,1.6297,182.18,182.06,20.8799638]
[1736751517251,6.14,182.19,182.14,2.7466]
[1736751517451,6.14,182.23,182.09,20.8799638]
[1736751517656,22.5742638,182.25,182.12,20.8799638]
[1736751517657,2.7452,182.24,182.12,20.8799638]
[1736751517956,2.7452,182.24,182.17,2.7461]
[1736751519452,1.6943,182.25,182.19,2.7458]
[1736751519650,1.6933,182.26,182.15,20.8799638]
[1736751520456,1.6933,182.26,182.2,2.7457]
[1736751522855,2.7444,182.29,182.19,2.7458]
[1736751523056,6.14,182.3,182.15,20.8799638]
[1736751523556,2.7447,182.27,182.2,2.7456]
[1736751523755,20.8799638,182.28,182.12,20.8799638]
[1736751524158,2.7451,182.24,182.18,2.746]
[1736751524560,20.8799638,182.28,182.12,20.8799638]
[1736751524754,2.7456,182.21,182.15,2.7464]
[1736751525155,20.8799638,182.22,182.09,20.8799638]
[1736751525357,3.247,182.21,182.09,20.8799638]
[1736751526557,3.247,182.21,182.15,2.7464]
[1736751527064,3.247,182.21,182.16,2.7463]
[1736751527260,1.5599,182.24,182.09,20.8799638]
[1736751527561,20.8799638,182.28,182.12,20.8799638]
[1736751527765,20.8799638,182.25,182.09,20.8799638]
[1736751527966,2.7455,182.22,182.09,20.8799638]
[1736751528562,20.8799638,182.25,182.09,20.8799638]
[1736751528761,2.7453,182.23,182.09,20.8799638]
[1736751529664,20.8799638,182.22,182.06,20.8799638]
[1736751529869,20.8799638,182.19,182.05,6.12]
[1736751530070,3.2042,182.18,182.04,30.1771093]
[1736751530265,2.7466,182.14,182.08,2.7475]
[1736751530471,20.8799638,182.16,182.03,20.8799638]
[1736751531572,2.7467,182.14,182.07,2.7475]
[1736751531961,2.7467,182.14,182.08,2.7475]
[1736751532871,2.7465,182.15,182.08,2.7475]
[1736751533577,3.2042,182.18,182.1,2.7472]
[1736751533873,24.0841638,182.18,182.03,20.8799638]
[1736751534269,2.7464,182.16,182.03,20.8799638]
[1736751535073,2.7464,182.16,182.1,2.7472]
[1736751535879,2.7464,182.16,182.08,2.7474]
[1736751536479,2.7464,182.16,182.09,2.7473]
[1736751537480,2.7464,182.16,182.03,20.8799638]
[1736751537675,2.7464,182.16,182.1,2.7472]
[1736751538273,2.7465,182.15,182.1,2.7472]
[1736751538479,24.0841638,182.18,182.03,20.8799638]
[1736751538676,20.8799638,182.15,182.01,94.24]
[1736751538876,2.7472,182.11,182.01,94.24]
[1736751539282,2.7472,182.11,182.05,2.7479]
[1736751539979,2.7472,182.11,182.06,2.7478]
[1736751540176,20.8799638,182.12,182.01,94.24]
[1736751540377,20.8799638,182.09,181.99,30.1771093]
[1736751540578,2.748,182.05,181.95,7.54427732]
[1736751541082,2.748,182.05,181.99,2.7489]
[1736751541382,23.6277638,182.06,181.99,2.7489]
[1736751543084,7.6285,182.08,181.96,2.7492]
[1736751543284,7.6285,182.08,181.92,6.12]
[1736751543285,4.881,182.08,181.92,6.12]
[1736751543679,4.881,182.08,181.98,2.749]
[1736751543680,2.748,182.05,181.98,2.749]
[1736751544389,2.748,182.05,181.99,2.7489]
[1736751547177,4.881,182.08,181.92,6.12]
[1736751547383,4.881,182.08,181.98,13.04746489]
[1736751547582,3.3315,182.08,181.98,13.04746489]
[1736751547886,3.3315,182.08,182.03,2.7482]
[1736751548385,6.0791,182.08,182.02,2.7484]
[1736751549285,13.04746489,182.1,181.98,13.04746489]
[1736751549481,13.04746489,182.1,182.01,13.04746489]
[1736751549688,13.04746489,182.13,182.01,13.04746489]
[1736751550284,6.12,182.2,182.07,13.04746489]
[1736751550488,13.04746489,182.19,182.07,13.04746489]
[1736751551686,13.04746489,182.13,182.01,19.16746489]
[1736751552185,1.5716,182.12,182.01,19.16746489]
[1736751552377,2.7474,182.1,182.05,2.7478]
[1736751552578,2.7474,182.1,182.01,19.16746489]
[1736751552988,2.7474,182.1,182.04,2.748]
[1736751553790,3.2525,182.12,182.01,6.12]
[1736751553986,3.2525,182.12,181.96,20.87034517]
[1736751554189,20.87034517,182.1,181.96,20.87034517]
[1736751554392,2.7481,182.05,181.98,2.749]
[1736751554586,2.7481,182.05,181.96,20.87034517]
[1736751555190,6.12,182.11,182.01,2.7486]
[1736751555896,2.7475,182.08,182.01,2.7486]
[1736751556193,6.12,182.11,182.01,2.7486]
[1736751556593,2.7477,182.07,182.01,2.7486]
[1736751558190,6.12,182.11,181.99,20.87034517]